Workbook

Sheet IBA
A1: NUCLEAR REACTION ANALYSIS
A2: ENTER VALUES OF DESIRED REACTION IN YELLOW CELLS | BW2: x | DQ2: X
A3: ENTER EXCITED STATE E LEVEL FOR NON-GROUND STATE REACTIONS
A5: IBA INPUT GRID | C5: Z | D5: M | G5: TARGET MATRIX GRID | L5: Mass in amu, Energy in MeV.
A6: Projectile= | C6: 6 | D6: 12 | G6: Zmatrix= | H6: 42 | L6: Z1,M1=incident atomic #(zI), mass(mI)
A7: Target= | C7: 1 | D7: 1 | G7: Mmatrix= | H7: 96 | L7: Z2,M2=target atomic #(zT), mass(mT)
A8: Reaction Product= | C8: 1 | D8: 1 | L8: Z3,M3=detected reaction particle atomic #(zD),mass(mD)
A9: Incident Energy= | D9: 12 | E9: MeV | G9: Vcoulomb= | H9: =((D6+D7)/D7)*C6*C7/(D6^0.33+D7^0.33) -> 23.84924767 | I9: MeV | L9: Z4,M4=residual atomic #(zR),mass(mR)
A10: Detector Angle= | D10: 30 | E10: degrees
A11: Mylar thicknes= | C11: works up to 19F | D11: 13 | E11: microns
A12: Excited state E= | E12: ="MeV above ground state "&$AC$65 -> MeV above ground state 12C
A14: NUCLEAR REACTION ANALYSIS INFORMATION
A15: Reaction | C15: =($AC$62&$AC$58&$AC$65) -> 1H(12C,1H)12C
A16: Q-Value | D16: =((INDEX($Z$69:$DQ$310,$D$6+1,$C$6+1+1)+INDEX($Z$69:$DQ$310,$D$7+1,$C$7+1+1)-INDEX($Z$69:$DQ$310,$D$8+1,$C$8+1+1)-INDEX($Z$69:$DQ$310,$D$32+1,$B$32+1+1))*931.48)-$D$12 -> 0 | E16: MeV | F16: Matrix | S16: 180/PI | T16: =180/PI() -> 57.29577951
A17: Detected Energy (Ed) | D17: =B86 -> 2.333272473 | E17: MeV | F17: =D67 ->  | G17: RBS | H17: ERD
A18: Rutherford Cross Section | G18: =D46/1000 ->  | H18: =D69/1000 -> 0.3371279392 | I18: b/sr
Q19: elasatic calculations
A20: REACTION CALCULATIONS CHECKS AND INFORMATION | Q20: ERD Calculation of COM values
A21: Mass of comp nucl.= | D21: =INDEX($Z$69:$DQ$310,$D$6+$D$7+1,$C$6+$C$7+1+1) -> 13.0057387 | E21: M1= | F21: =INDEX($Z$69:$DQ$310,$D$6+1,$C$6+1+1) -> 12 | G21: M2= | H21: =INDEX($Z$69:$DQ$310,$D$7+1,$C$7+1+1) -> 1.00782522 | Q21: zeta | R21: =D10 -> 30
A22: Compound Nucleus | D22: =INDEX($Z$69:$DQ$310,($D$6+$D$7)+1,1)&INDEX($Z$69:$DQ$310,1,($C$6+$C$7+1)+1) -> 13N | E22: M3= | F22: =INDEX($Z$69:$DQ$310,$D$8+1,$C$8+1+1) -> 1.00782522 | G22: M4= | H22: =INDEX($Z$69:$DQ$310,$D$32+1,$B$32+1+1) -> 12 | Q22: phi | R22: =2*R21 -> 60
A23: E of Compound Nucl.= | D23: =D16+D9*(1-F21/D21) -> 0.9279645454 | E23: MeV | F23: Eo(cm)= | G23: =T47 -> 0.9230769231 | H23: MeV | Q23: theta | R23: =180-R22 -> 120
A24: Threshold = | D24: =-1*((F21+H21)/H21)*D16 -> 0 | E24: MeV | F24: E(coulomb)= | G24: =(($C$7*$C$6*10000000000000*$T$59)/(1.4*($D$7^(1/3)+$D$6^(1/3))))*(1+$D$6/$D$7) -> 24.38135216 | H24: MeV | Z24: macro for angle scans | AJ24: macro for energy scans
A25: =+$AC$62&"+"&+$AC$61&" E level on the "&$D$22&" NDS=" -> 1H+12C E level on the 13N NDS= | E25: =((F21-$D$6)+(H21-$D$7)-($D$21-ROUND($D$21,0)))*931.48 -> 1.94355165
A27: Emitted Energy (E3) | D27: =$T$31 -> 2.556213018 | E27: MeV | R27: Matrix k's | S27: mumat | T27: =(H7/$D$6) -> 8 | U27: kmat | V27: =(($W$71+($T$27^2-$W$73)^0.5)/(1+$T$27))^2 -> 0.9670286546
U28: Reaction particle angle
S29: mu | T29: =$D$7/$D$6 -> 0.08333333333 | U29: psi | V29: =$D$10 -> 30 | W29: cm angle | X29: =180-ASIN((T33/(T30*T58))^0.5*SIN(D36/T16))*T16 -> 120
A30: RESIDUAL SPECIES INFORMATION | S30: etotal | T30: =$D$9+$D$16 -> 12 | U30: psirad | V30: =($D$10/(180/PI())) -> 0.5235987756 | X30: =((T31/T30)/T58)^0.5 -> 1.732050808
D31: (lab) | F31: (c.m.) | Q31: B<D | R31: =IF(T56<T58,1,0) -> 0 | S31: energy3 | T31: =$T$30*$T$56*($V$31+($T$58/$T$56-$V$35^2)^0.5)^2 -> 2.556213018 | U31: cospsi | V31: =COS($V$30) -> 0.8660254038
A32: Z4= | B32: =$C$7+$T$42 -> 6 | C32: M4= | D32: =$D$7+$T$43 -> 12 | Q32: B>D | R32: =IF(R31=1,0,1) -> 1 | U32: zeta | V32: =((F22*T31/(H22*T35))^0.5*SIN(D43/T16))*T16 -> 4.31936649
A33: Species= | C33: =$AC$65 -> 12C | J33: Cross Section Transformation Calculations | Q33: psi<sin-1(D/B^.5) | R33: =IF(D10<ASIN((T58/T56)^0.5),1,0) -> 0 | T33: =T31 -> 2.556213018
A34: Residual Energy= | D34: =($T$30-$T$31) -> 9.443786982 | E34: MeV | F34: =$T$30*$T$57 -> 0.07100591716 | G34: MeV
A35: Residual angle= | D35: =V32 -> 4.31936649 | E35: deg. | F35: =180-$X$29 -> 60 | G35: deg | J35: Heavy ion is Projectile (the experiment system) | Q35: A<C | R35: =IF(T55<T57,1,0) -> 0 | S35: energy4 | T35: =T30-T31 -> 9.443786982 | U35: sinpsi | V35: =SIN($V$30) -> 0.5
A36: Detector angle= | D36: =D10 -> 30 | E36: deg. | F36: =$X$29 -> 120 | G36: deg | J36: CS trabsform to com from lab for light product (M3) | Q36: A>C | R36: =IF(R35=1,0,1) -> 1 | S36: + | T36: =$T$30*$T$55*(COS($V$32/$T$16)+($T$57/$T$55-SIN($V$32/$T$16)^2)^0.5)^2 -> 10.90712075
A37: Detected energy= | D37: =IF(ISERR($T$35)=1,"N.Det.",$T$35) -> 9.443786982 | E37: =IF(ISERR($T$35)=1,"","MeV") -> MeV | G37: MeV | Q37: psi<sin-1(C/A^.5) | R37: =IF(D10<ASIN((T57/T55)^0.5),1,0) -> 0 | S37: - | T37: =$T$30*$T$55*(COS($V$32/$T$16)-($T$57/$T$55-SIN($V$32/$T$16)^2)^0.5)^2 -> 9.452594689
J38: CS3lab/CS3com= | L38: =(T31/T30)/(T55*T57*(T58/T56-SIN(D36/T16)^2))^0.5 -> 3.464101615
A39: RBS INFORMATION | D39: (lab) | F39: (c.m.) | J39: elastic= | L39: =(4*COS(D10/T16)) -> 3.464101615 | M39: com | N39: mb/sr
A40: Scattered Particle | D40: =$AC$61 -> 12C | K40: E(MeV) | L40: lab/com | M40: mb/sr | N40: lab | S40: qvalue | T40: =D16 -> 0 | U40: sinpsi2 | V40: =($V$35^2) -> 0.25
A41: Target Atom | D41: =$AC$62 -> 1H | L41: =+L38 -> 3.464101615 | M41: from ' system | N41: mb/sr
A42: Incident Energy= | D42: =$D$9 -> 12 | E42: MeV | F42: =(D42/(1+$D$6/$D$7)) -> 0.9230769231 | G42: MeV | K42: ='IBA-prime'!K42*$D$6/$D$7 -> 1.2 | L42: 3.464101615 | M42: ='IBA-prime'!N42 -> 9.670084416 | N42: =M42*L42 -> 33.49815505 | S42: deltaZ | T42: =$C$6-$C$8 -> 5
A43: Scattering Angle= | D43: =D10 -> 30 | E43: degrees | F43: =$X$69 ->  | G43: deg | K43: ='IBA-prime'!K43*$D$6/$D$7 -> 2.4 | L43: 3.464101615 | M43: ='IBA-prime'!N43 -> 2.417521104 | N43: =M43*L43 -> 8.374538761 | S43: deltaM | T43: =$D$6-$D$8 -> 11
A44: Recoil Angle= | D44: =V32 -> 4.31936649 | E44: degrees | F44: =2*D44 -> 8.638732979 | G44: deg | K44: ='IBA-prime'!K44*$D$6/$D$7 -> 3.6 | L44: 3.464101615 | M44: ='IBA-prime'!N44 -> 1.074453824 | N44: =M44*L44 -> 3.722017227 | U44: Residual Particle angle
A45: K factor= | D45: =$T$69 ->  | K45: ='IBA-prime'!K45*$D$6/$D$7 -> 4.8 | L45: 3.464101615 | M45: ='IBA-prime'!N45 -> 0.604380276 | N45: 2.09363469 | S45: total system | U45: zeta | V45: =$D$35 -> 4.31936649 | W45: cm angle | X45: =180-X29 -> 60
A46: Rutherford xsection= | D46: =$T$61*1000 ->  | E46: mb/sr | F46: =$T$62*1000 -> 55.16520534 | G46: mb/sr | K46: ='IBA-prime'!K46*$D$6/$D$7 -> 6 | L46: 3.464101615 | M46: ='IBA-prime'!N46 -> 0.3868033767 | N46: 1.339926202 | S46: energy [MeV]= | T46: =(INDEX($Z$69:$DQ$310,$D$6+1,$C$6+1)+INDEX($Z$69:$DQ$310,$D$7+1,$C$7+1)-INDEX($Z$69:$DQ$310,($D$6+$D$7)+1,($C$6+$C$7)+1))*931.48+$T$47 -> 19.2385148 | U46: zetarad | V46: -0.1655026957
A47: Scattered Energy= | D47: =$T$70 ->  | E47: MeV | F47: =$D$7*$D$7*D42/($D$6+$D$7)^2 -> 0.07100591716 | G47: MeV | K47: ='IBA-prime'!K47*$D$6/$D$7 -> 7.2 | L47: 3.464101615 | M47: ='IBA-prime'!N47 -> 0.268613456 | N47: 0.9305043068 | S47: E1[cm frame]= | T47: =$D$9/(1+$D$6/$D$7) -> 0.9230769231 | U47: coszeta | V47: =COS($V$46) -> 0.9863356618
A48: Recoil Energy= | D48: 0.9555084301 | E48: MeV | F48: =$D$6*$D$7*D42/($D$6+$D$7)^2 -> 0.8520710059 | G48: MeV | K48: ='IBA-prime'!K48*$D$6/$D$7 -> 8.4 | L48: 3.464101615 | M48: ='IBA-prime'!N48 -> 0.1973486616 | N48: 0.6836358172 | U48: sinzeta | V48: =SIN($V$46) -> -0.1647481785
K49: ='IBA-prime'!K49*$D$6/$D$7 -> 9.6 | L49: 3.464101615 | M49: ='IBA-prime'!N49 -> 0.151095069 | N49: 0.5234086726 | U49: sinzeta2 | V49: =SIN($V$46)^2 -> 0.02714196233
K50: ='IBA-prime'!K50*$D$6/$D$7 -> 10.8 | L50: 3.464101615 | M50: ='IBA-prime'!N50 -> 0.1193837582 | N50: 0.4135574697
A51: ERD INPUT VALUES GRID | K51: ='IBA-prime'!K51*$D$6/$D$7 -> 12 | L51: 3.464101615 | M51: ='IBA-prime'!N51 -> 0.09670084416 | N51: 0.3349815505 | AF51: Be
C52: Atomic# | D52: 2 | E52: Species | K52: ='IBA-prime'!K52*$D$6/$D$7 -> 13.2 | L52: 3.464101615 | M52: ='IBA-prime'!N52 -> 0.07991805303 | N52: 0.2768442566
A53: Incident Ion | C53: =C6 -> 6 | D53: =D6 -> 12 | E53: =INDEX($Z$69:$DQ$310,$D$53+1,1)&INDEX($Z$69:$DQ$310,1,$C$53+1+1) -> 12C | K53: ='IBA-prime'!K53*$D$6/$D$7 -> 14.4 | L53: 3.464101615 | M53: ='IBA-prime'!N53 -> 0.067153364 | N53: 0.2326260767 | T53: NRA Calculations
A54: Recoil Atom | C54: =C7 -> 1 | D54: =D7 -> 1 | E54: =INDEX($Z$69:$DQ$310,$D$54+1,1)&INDEX($Z$69:$DQ$310,1,$C$54+1+1) -> 1H | K54: ='IBA-prime'!K54*$D$6/$D$7 -> 15.6 | L54: 3.464101615 | M54: ='IBA-prime'!N54 -> 0.05721943442 | N54: 0.1982139352 | T54: Green book coefficients
A55: Substrate | C55: =H6 -> 42 | D55: =H7 -> 96 | E55: =INDEX($Z$69:$DQ$310,$D$55+1,1)&INDEX($Z$69:$DQ$310,1,$C$55+1+1) -> 96Mo | K55: ='IBA-prime'!K55*$D$6/$D$7 -> 16.8 | L55: 3.464101615 | M55: ='IBA-prime'!N55 -> 0.04933716539 | N55: 0.1709089543 | S55: A | T55: =($D$6*$D$32*($D$9/$T$30))/(($D$6+$D$7)*($D$8+$D$32)) -> 0.8520710059 | U55: =(T55*T57) -> 0.005041840272 | V55: AC | W55: 0.5340149439
A56: Recoil Angle= | D56: =D10 -> 30 | E56: degrees | K56: ='IBA-prime'!K56*$D$6/$D$7 -> 18 | L56: 3.464101615 | M56: ='IBA-prime'!N56 -> 0.04297815296 | N56: 0.1488806891 | S56: B | T56: =($D$6*$D$8*($D$9/$T$30))/(($D$6+$D$7)*($D$8+$D$32)) -> 0.07100591716 | U56: =(T56*T58) -> 0.005041840272 | V56: BD | W56: 0.03814392456
A57: Incident Energy= | D57: =D9 -> 12 | E57: MeV | K57: ='IBA-prime'!K57*$D$6/$D$7 -> 19.2 | L57: 3.464101615 | M57: ='IBA-prime'!N57 -> 0.03777376725 | N57: 0.1308521681 | S57: C | T57: =(($D$7*$D$8)/(($D$6+$D$7)*($D$8+$D$32)))*(1+($D$6*$D$16)/($D$7*$T$30)) -> 0.005917159763 | U57: =SUM(T55:T58) -> 1 | V57: Sum | W57: 0.0285227421
A58: Mylar thicknes= | D58: =D11 -> 13 | E58: microns | K58: ='IBA-prime'!K58*$D$6/$D$7 -> 20.4 | L58: 3.464101615 | M58: ='IBA-prime'!N58 -> 0.03346049971 | N58: 0.1159105711 | S58: D | T58: =(($D$7*$D$32)/(($D$6+$D$7)*($D$8+$D$32)))*(1+($D$6*$D$16)/($D$7*$T$30)) -> 0.07100591716 | W58: 0.3993183894 | AB58: RXN | AC58: =("("&AC61&","&AC64&")") -> (12C,1H)
K59: ='IBA-prime'!K59*$D$6/$D$7 -> 21.6 | L59: 3.464101615 | M59: ='IBA-prime'!N59 -> 0.02984593956 | N59: 0.1033893674 | S59: esqrd | T59: =(14.395/1000000)/100000000 -> 1.4395e-13 | U59: MeV cm
A60: ERD INFORMATION | K60: ='IBA-prime'!K60*$D$6/$D$7 -> 22.8 | L60: 3.464101615 | M60: ='IBA-prime'!N60 -> 0.02678693744 | N60: 0.09279267325 | AB60: GAMMA | AC60: g-ray
A61: Recoil Energy= | D61: =$T$76 -> 2.556213018 | E61: MeV | K61: ='IBA-prime'!K61*$D$6/$D$7 -> 24 | L61: 3.464101615 | M61: ='IBA-prime'!N61 -> 0.02417521104 | N61: 0.08374538761 | R61: Rutherford | S61: dsigma | T61: =(U61*U62/U63)/1E-24 ->  | U61: =($C$6*$C$7*$T$59/(2*$D$9))^2 -> 1.295100156e-27 | V61: =($C$6*$C$7*$T$59/(2*$F$42))^2 -> 2.188719264e-25 | AB61: INCIDENT | AC61: =INDEX($Z$69:$DQ$310,$D$6+1,1)&INDEX($Z$69:$DQ$310,1,$C$6+1+1) -> 12C
A62: Detected Energy= | D62: =B106 -> 2.333272473 | E62: Mev | K62: ='IBA-prime'!K62*$D$6/$D$7 -> 25.2 | L62: 3.464101615 | M62: ='IBA-prime'!N62 -> 0.02192762906 | N62: 0.07595953525 | S62: cmsigma | T62: =(V61/V63)/1E-24 -> 0.05516520534 | U62: =($W$71+(1-($D$6/$D$7)^2*$W$73)^0.5)^2 ->  | AB62: TARGET | AC62: =INDEX($Z$69:$DQ$310,$D$7+1,1)&INDEX($Z$69:$DQ$310,1,$C$7+1+1) -> 1H | AE62: 3He(3He,2p)a Q value
A63: Recoiled Particle | D63: =$E$54 -> 1H | K63: ='IBA-prime'!K63*$D$6/$D$7 -> 26.4 | L63: 3.464101615 | M63: ='IBA-prime'!N63 -> 0.01997951326 | N63: 0.06921106414 | U63: =($W$72^4*(1-($D$6/$D$7)^2*$W$73)^0.5) ->  | V63: 3.967572042 | AB63: COMPOUND | AC63: =INDEX($Z$69:$DQ$310,($D$6+$D$7)+1,1)&INDEX($Z$69:$DQ$310,1,($C$6+$C$7+1)+1) -> 13N | AE63: 12.85937947
A64: Detector Angle= | D64: =$D$56 -> 30 | E64: degrees | K64: ='IBA-prime'!K64*$D$6/$D$7 -> 27.6 | L64: 3.464101615 | M64: ='IBA-prime'!N64 -> 0.01827993273 | N64: 0.06332354451 | AB64: DETECTED | AC64: =INDEX($Z$69:$DQ$310,$D$8+1,1)&INDEX($Z$69:$DQ$310,1,$C$8+1+1) -> 1H
A65: Scattered Particle | D65: =$E$53 -> 12C | K65: ='IBA-prime'!K65*$D$6/$D$7 -> 28.8 | L65: 3.464101615 | M65: ='IBA-prime'!N65 -> 0.016788341 | N65: 0.05815651918 | AB65: RESIDUAL | AC65: =INDEX($Z$69:$DQ$310,$D$32+1,1)&INDEX($Z$69:$DQ$310,1,$B$32+1+1) -> 12C
A66: Scattered Energy= | D66: =$D$9*V27 -> 11.60434386 | E66: =IF(ISERR($W$76)=1,$S$87,$S$86) -> MeV at DET. ANGLE | K66: ='IBA-prime'!K66*$D$6/$D$7 -> 30 | L66: 3.464101615 | M66: ='IBA-prime'!N66 -> 0.01547213507 | N66: 0.05359704807 | Z66: mtable
A67: scatt energy after foil= | D67: =B95 ->  | E67: =IF(ISERR($W$76)=1,$S$87,$S$86) -> MeV at DET. ANGLE | K67: ='IBA-prime'!K67*$D$6/$D$7 -> 31.2 | L67: 3.464101615 | M67: ='IBA-prime'!N67 -> 0.0143048586 | N67: 0.04955348379 | W67: lab | X67: c.m. | AA67: Z
A68: Max. Scat. Angle= | D68: =IF(ISERR($W$76)=1,180,$W$76) -> 180 | E68: degrees | K68: ='IBA-prime'!K68*$D$6/$D$7 -> 32.4 | L68: 3.464101615 | M68: ='IBA-prime'!N68 -> 0.01326486203 | N68: 0.04595082997 | S68: MeV | V68: RBS Scattering angle | Z68: M | AA68: 0 | AB68: 1 | AC68: 2 | AD68: 3 | AE68: 4 | AF68: 5 | AG68: 6 | AH68: 7 | AI68: 8 | AJ68: 9 | AK68: 10 | AL68: 11 | AM68: 12 | AN68: 13 | AO68: 14 | AP68: 15 | AQ68: 16 | AR68: 17 | AS68: 18 | AT68: 19 | AU68: 20 | AV68: 21 | AW68: 22 | AX68: 23 | AY68: 24 | AZ68: 25 | BA68: 26 | BB68: 27 | BC68: 28 | BD68: 29 | BE68: 30 | BF68: 31 | BG68: 32 | BH68: 33 | BI68: 34 | BJ68: 35 | BK68: 36 | BL68: 37 | BM68: 38 | BN68: 39 | BO68: 40 | BP68: 41 | BQ68: 42 | BR68: 43 | BS68: 44 | BT68: 45 | BU68: 46 | BV68: 47 | BW68: 48 | BX68: 49 | BY68: 50 | BZ68: 51 | CA68: 52 | CB68: 53 | CC68: 54 | CD68: 55 | CE68: 56 | CF68: 57 | CG68: 58 | CH68: 59 | CI68: 60 | CJ68: 61 | CK68: 62 | CL68: 63 | CM68: 64 | CN68: 65 | CO68: 66 | CP68: 67 | CQ68: 68 | CR68: 69 | CS68: 70 | CT68: 71 | CU68: 72 | CV68: 73 | CW68: 74 | CX68: 75 | CY68: 76 | CZ68: 77 | DA68: 78 | DB68: 79 | DC68: 80 | DD68: 81 | DE68: 82 | DF68: 83 | DG68: 84 | DH68: 85 | DI68: 86 | DJ68: 87 | DK68: 88 | DL68: 89 | DM68: 90 | DN68: 91 | DO68: 92 | DP68: 93 | DQ68: 94
A69: Cross Section= | D69: =20.731*(C53*C54*(D53+D54)/(2*D54*D57))^2/COS(D56*3.14159/180)^3 -> 337.1279392 | E69: mb/sr | K69: ='IBA-prime'!K69*$D$6/$D$7 -> 33.6 | L69: 3.464101615 | M69: ='IBA-prime'!N69 -> 0.01233429135 | N69: 0.04272723858 | S69: K | T69: =(($W$71+($T$29^2-$W$73)^0.5)/(1+$T$29))^2 ->  | V69: theta | W69: =$D$43 -> 30 | X69: =$D$43+ASIN($D$6*W72/$D$7) ->  | Z69: g-ray | AA69: n | AB69: H | AC69: He | AD69: Li | AE69: Be | AF69: B | AG69: C | AH69: N | AI69: O | AJ69: F | AK69: Ne | AL69: Na | AM69: Mg | AN69: Al | AO69: Si | AP69: P | AQ69: S | AR69: Cl | AS69: Ar | AT69: K | AU69: Ca | AV69: Sc | AW69: Ti | AX69: V | AY69: Cr | AZ69: Mn | BA69: Fe | BB69: Co | BC69: Ni | BD69: Cu | BE69: Zn | BF69: Ga | BG69: Ge | BH69: As | BI69: Se | BJ69: Br | BK69: Kr | BL69: Rb | BM69: Sr | BN69: Y | BO69: Zr | BP69: Nb | BQ69: Mo | BR69: Tc | BS69: Ru | BT69: Rh | BU69: Pd | BV69: Ag | BW69: Cd | BX69: In | BY69: Sn | BZ69: Sb | CA69: Te | CB69: I | CC69: Xe | CD69: Cs | CE69: Ba | CF69: La | CG69: Ce | CH69: Pr | CI69: Nd | CJ69: Pm | CK69: Sm | CL69: Eu | CM69: Gd | CN69: Tb | CO69: Dy | CP69: Ho | CQ69: Er | CR69: Tm | CS69: Yb | CT69: Lu | CU69: Hf | CV69: Ta | CW69: W | CX69: Re | CY69: Os | CZ69: Ir | DA69: Pt | DB69: Au | DC69: Hg | DD69: Tl | DE69: Pb | DF69: Bi | DG69: Po | DH69: At | DI69: Rn | DJ69: Fr | DK69: Ra | DL69: Ac | DM69: Th | DN69: Pa | DO69: U | DP69: Np | DQ69: Pu
K70: ='IBA-prime'!K70*$D$6/$D$7 -> 34.8 | L70: 3.464101615 | M70: ='IBA-prime'!N70 -> 0.01149831679 | N70: 0.03983133775 | S70: escatter | T70: =$T$69*$D$9 ->  | V70: thetarad | W70: =W69*3.14159/180 -> 0.5235983333 | X70: 2.886752044 | Z70: 1 | AA70: 1.008664967 | AB70: 1.00782522
A71: ........................................................... | K71: ='IBA-prime'!K71*$D$6/$D$7 -> 36 | L71: 3.464101615 | M71: ='IBA-prime'!N71 -> 0.01074453824 | N71: 0.03722017227 | S71: bsrecoilE | T71: =(1-$T$69)*$D$9 ->  | V71: costheta | W71: =COS($W$70) -> 0.8660256249 | X71: =COS(X70) -> -0.9677034888 | Z71: 2 | AB71: 2.014101787
A72: Mylar foil effect on detected energy | V72: sintheta | W72: =SIN($W$70) -> 0.499999617 | X72: =SIN(X70) -> 0.2520911694 | Z72: 3 | AB72: 3.016049286 | AC72: 3.016029297
S73: erdmu | T73: =($D$55/$D$53) -> 8 | V73: sintheta2 | W73: =(W72^2) -> 0.249999617 | X73: =SIN(X70)^2 -> 0.06354995769 | Z73: 4 | AB73: 4.02783 | AC73: 4.00260325 | AD73: 4.02697
A74: logR = mlogE + b | S74: erdK | T74: =IF(ISERR($W$76)=1,$T$83,$T$84) -> 0.9670286011 | Z74: 5 | AB74: 5.03627 | AC74: 5.01222 | AD74: 5.0125
A75: logE = (logR - b)/m | S75: erdescatter | T75: =$T$74*$D$57 -> 11.60434321 | V75: ERD Scattering angle | Z75: 6 | AC75: 6.018891 | AD75: 6.015121 | AE75: 6.019727
S76: erdrecoilE | T76: =4*$D$53*$D$54*$D$57*$W$85/($D$53+$D$54)^2 -> 2.556213018 | V76: phi | Z76: 7 | AC76: 7.028031 | AD76: 7.016003 | AE76: 7.0169299
A77: R in um -- E in MeV | V77: phirad | Z77: 8 | AD77: 8.022489 | AE77: 8.00530515 | AF77: 8.0246075
E78: calc | V78: cosphi | W78: =COS($W$77) ->  | Z78: 9 | AE78: 9.0121825 | AF78: 9.0133291 | AG78: 9.031038
A79: input from nra | V79: sinphi | W79: =SIN($W$77) ->  | Z79: 10 | AE79: 10.0135347 | AF79: 10.012938 | AG79: 10.0168576
A80: Z | B80: =C8 -> 1 | E80: m | F80: =IF(B80>9,0,INDEX($B$111:$J$129,B81,B80)) -> 1.669452028 | V80: sinphi2 | W80: =($W$79^2) ->  | Z80: 11 | AE80: 11.02166 | AF80: 11.0093053 | AG80: 11.0114331 | AH80: 11.02708
A81: M | B81: =D8 -> 1 | E81: b | F81: =IF(B80>9,0,INDEX($B$136:$J$154,B81,B80)) -> 1.283310182 | Z81: 12 | AE81: 12.02687 | AF81: 12.0143526 | AG81: 12 | AH81: 12.018613
A82: E3 | B82: =D27 -> 2.556213018 | C82: MeV | E82: R | F82: =10^(LOG(B82)*F80+F81) -> 91.99704768 | G82: um | V82: ERD Recoil angle | Z82: 13 | AG82: 13.00335484 | AH82: 13.0057387
E83: x | F83: =F82-B84 -> 78.99704768 | G83: um | S83: erdk if 1 | T83: =(($W$86+($T$73^2-$W$87)^0.5)/(1+$T$73))^2 -> 0.9670286011 | V83: recoilangle | W83: =D56 -> 30 | Z83: 14 | AG83: 14.00324199 | AH83: 14.00307401 | AI83: 14.0085972
A84: thick= | B84: =D11 -> 13 | C84: um | S84: erdk if 2 | T84: =(($W$78+($T$73^2-$W$80)^0.5)/(1+$T$73))^2 ->  | V84: sinrecoil | W84: 0.5 | Z84: 15 | AH84: 15.00010898 | AI84: 15.0030654 | AJ84: 15.01895
V85: cosrecoil2 | W85: 0.75 | Z85: 16 | AH85: 16.0060994 | AI85: 15.99491464 | AJ85: 16.011479
A86: Ed | B86: =10^((LOG(F83)-F81)/F80) -> 2.333272473 | C86: MeV | S86: MeV at MAX ANGLE | V86: cosrecoil | W86: 0.8660254038 | Z86: 17 | AI86: 16.9991306 | AJ86: 17.00209518
S87: MeV at DET. ANGLE | V87: sinrecoil2 | W87: =(W84^2) -> 0.25 | Z87: 18 | AI87: 17.99915939 | AJ87: 18.0009366 | AK87: 18.00571
A88: input from RBS | Z88: 19 | AI88: 19.0035764 | AJ88: 18.99840325 | AK88: 19.0018797
A89: Z | B89: =C53 -> 6 | E89: m | F89: =IF(B89>9,0,INDEX($B$111:$J$129,B90,B89)) -> 0.9860379052 | Z89: 20 | AJ89: 19.9999817 | AK89: 19.9924391 | AL89: 20.007347
A90: M | B90: =D53 -> 12 | E90: b | F90: =IF(B89>9,0,INDEX($B$136:$J$154,B90,B89)) -> 0.05596146918 | Z90: 21 | AK90: 20.9938453 | AL90: 20.9976535
A91: E3 | B91: =D66 -> 11.60434386 | C91: MeV | E91: R | F91: =10^(LOG(B91)*F89+F90) -> 12.75609441 | G91: um | Z91: 22 | AK91: 21.9913837 | AL91: 21.994436 | AM91: 21.9995769
E92: x | F92: =F91-B93 -> -0.2439055946 | G92: um | Z92: 23 | AK92: 22.9944658 | AL92: 22.989768 | AM92: 22.994125
A93: thick= | B93: =B84 -> 13 | C93: um | Z93: 24 | AL93: 23.990964 | AM93: 23.985042 | AN93: 23.999944
Z94: 25 | AM94: 24.985838 | AN94: 24.9904317
A95: Ed | B95: =10^((LOG(F92)-F90)/F89) ->  | C95: MeV | Z95: 26 | AM95: 25.982594 | AN95: 25.986894 | AO95: 25.9923316
Z96: 27 | AM96: 26.984343 | AN96: 26.981539 | AO96: 26.986704
Z97: 28 | AN97: 27.9819122 | AO97: 27.976927 | AP97: 27.992314
Z98: 29 | AO98: 28.976495 | AP98: 28.9818044
A99: input from erd | Z99: 30 | AO99: 29.97377 | AP99: 29.97831 | AQ99: 29.9849039
A100: Z | B100: =C54 -> 1 | E100: m | F100: =IF(B100>9,0,INDEX($B$111:$J$129,B101,B100)) -> 1.669452028 | Z100: 31 | AO100: 30.975365 | AP100: 30.973762 | AQ100: 30.9796
A101: M | B101: =D54 -> 1 | E101: b | F101: =IF(B100>9,0,INDEX($B$136:$J$154,B101,B100)) -> 1.283310182 | Z101: 32 | AP101: 31.9739087 | AQ101: 31.972071 | AR101: 31.985691
A102: E3 | B102: =D61 -> 2.556213018 | C102: MeV | E102: R | F102: =10^(LOG(B102)*F100+F101) -> 91.99704768 | G102: um | Z102: 33 | AP102: 32.9717264 | AQ102: 32.971459 | AR102: 32.9774526
E103: x | F103: =F102-B104 -> 78.99704768 | G103: um | Z103: 34 | AQ103: 33.9678667 | AR103: 33.973765 | AS103: 33.9802693
A104: thick= | B104: =D58 -> 13 | C104: um | Z104: 35 | AQ104: 34.9690333 | AR104: 34.9688527 | AS104: 34.9752562
Z105: 36 | AQ105: 35.9670806 | AR105: 35.968307 | AS105: 35.9675456 | AT105: 35.981293
A106: Ed | B106: =10^((LOG(F103)-F101)/F100) -> 2.333272473 | C106: MeV | Z106: 37 | AR106: 36.9659026 | AS106: 36.9667763 | AT106: 36.97337
Z107: 38 | AR107: 37.968009 | AS107: 37.9627322 | AT107: 37.9690801 | AU107: 37.976318
A108: slope=m | Z108: 39 | AS108: 38.964315 | AT108: 38.9637079 | AU108: 38.970711
B109: z | Z109: 40 | AS109: 39.9623831 | AT109: 39.9639988 | AU109: 39.9625907 | AV109: 39.977963
A110: m | B110: 1 | C110: 2 | D110: 3 | E110: 4 | F110: 5 | G110: 6 | H110: 7 | I110: 8 | J110: 9 | Z110: 41 | AS110: 40.9645006 | AT110: 40.9618254 | AU110: 40.9622792 | AV110: 40.9692502
A111: 1 | B111: 1.669452028 | Z111: 42 | AT111: 41.9624018 | AU111: 41.958618 | AV111: 41.9655173 | AW111: 41.973031
A112: 2 | B112: 1.621255327 | Z112: 43 | AT112: 42.960721 | AU112: 42.958767 | AV112: 42.9611541 | AW112: 42.968519
A113: 3 | B113: 1.552632849 | C113: 1.512127989 | Z113: 44 | AT113: 43.96156 | AU113: 43.955481 | AV113: 43.9594088 | AW113: 43.9596928
A114: 4 | C114: 1.504044666 | Z114: 45 | AT114: 44.960697 | AU114: 44.956193 | AV114: 44.95591 | AW114: 44.9581279
A115: 5 | Z115: 46 | AU115: 45.95369 | AV115: 45.9551739 | AW115: 45.9526327 | AX115: 45.9602032
A116: 6 | Z116: 47 | AU116: 46.954543 | AV116: 46.9524096 | AW116: 46.9517649 | AX116: 46.9549104
A117: 7 | D117: 1.299133035 | Z117: 48 | AU117: 47.952534 | AV117: 47.95223 | AW117: 47.9479467 | AX117: 47.9522569 | AY117: 47.954033
A118: 8 | Z118: 49 | AV118: 48.950022 | AW118: 48.9478705 | AX118: 48.9485166 | AY118: 48.9513377
A119: 9 | E119: 1.164183609 | Z119: 50 | AV119: 49.952186 | AW119: 49.9447858 | AX119: 49.9471613 | AY119: 49.9460463 | AZ119: 49.9542398
A120: 10 | Z120: 51 | AX120: 50.9439625 | AY120: 50.944769 | AZ120: 50.9482129
A121: 11 | F121: 1.039420726 | Z121: 52 | AX121: 51.9447786 | AY121: 51.9405097 | AZ121: 51.9455672 | BA121: 51.948114
A122: 12 | G122: 0.9860379052 | Z122: 53 | AY122: 52.940651 | AZ122: 52.9412912 | BA122: 52.9453095
A123: 13 | Z123: 54 | AY123: 53.9388822 | AZ123: 53.9403605 | BA123: 53.9396121 | BB123: 53.94846
A124: 14 | H124: 0.9204794081 | Z124: 55 | AY124: 54.9408415 | AZ124: 54.9380463 | BA124: 54.9382947 | BB124: 54.9420034
A125: 15 | Z125: 56 | AZ125: 55.9389064 | BA125: 55.9349393 | BB125: 55.9398426 | BC125: 55.942134
A126: 16 | I126: 0.9034704332 | Z126: 57 | BA126: 56.9353957 | BB126: 56.9362938 | BC126: 56.939775
A127: 17 | Z127: 58 | BA127: 57.9332778 | BB127: 57.9357553 | BC127: 57.9353471 | BD127: 57.9445394
A128: 18 | Z128: 59 | BB128: 58.9331978 | BC128: 58.9343502 | BD128: 58.9395039
A129: 19 | J129: 0.8652720275 | Z129: 60 | BB129: 59.9338202 | BC129: 59.930789 | BD129: 59.9373664 | BE129: 59.941831
Z130: 61 | BB130: 60.9324778 | BC130: 60.9310586 | BD130: 60.9334616 | BE130: 60.93926
Z131: 62 | BC131: 61.9283464 | BD131: 61.932586 | BE131: 61.934333
A132: intercept=b | Z132: 63 | BC132: 62.9296699 | BD132: 62.9295992 | BE132: 62.9332141
Z133: 64 | BC133: 63.927968 | BD133: 63.9297661 | BE133: 63.9291454 | BF133: 63.936837 | BG133: 63.94157
B134: z | Z134: 65 | BD134: 64.9277924 | BE134: 64.9292437 | BF134: 64.9327389 | BG134: 64.93944
A135: m | B135: 1 | C135: 2 | D135: 3 | E135: 4 | F135: 5 | G135: 6 | H135: 7 | I135: 8 | J135: 9 | Z135: 66 | BD135: 65.928871 | BE135: 65.9260352 | BF135: 65.9315908 | BG135: 65.933847
A136: 1 | B136: 1.283310182 | Z136: 67 | BD136: 66.927746 | BE136: 66.9271289 | BF136: 66.9282036 | BG136: 66.93296
A137: 2 | B137: 1.110307138 | Z137: 68 | BE137: 67.9248458 | BF137: 67.9279817 | BG137: 67.928104
A138: 3 | B138: 1.048439146 | C138: 0.4993683279 | Z138: 69 | BE138: 68.9265519 | BF138: 68.9255809 | BG138: 68.92797
A139: 4 | C139: 0.4306085656 | Z139: 70 | BE139: 69.9253249 | BF139: 69.9260278 | BG139: 69.9242498 | BH139: 69.930929
A140: 5 | Z140: 71 | BF140: 70.9247006 | BG140: 70.9249537 | BH140: 70.927114
A141: 6 | Z141: 72 | BF141: 71.9263651 | BG141: 71.92208 | BH141: 71.926751 | BI141: 71.927113
A142: 7 | D142: 0.2366127039 | Z142: 73 | BF142: 72.92514 | BG142: 72.9234639 | BH142: 72.923834 | BI142: 72.926775
A143: 8 | Z143: 74 | BG143: 73.9211788 | BH143: 73.9239296 | BI143: 73.9224771 | BJ143: 73.929903
A144: 9 | E144: 0.1386223901 | Z144: 75 | BG144: 74.9228599 | BH144: 74.9215955 | BI144: 74.922524 | BJ144: 74.925755
A145: 10 | F145: 0.114181246 | Z145: 76 | BG145: 75.9214027 | BH145: 75.9223934 | BI145: 75.9192066 | BJ145: 75.924527 | BK145: 75.92582
A146: 11 | Z146: 77 | BH146: 76.9206488 | BI146: 76.9199077 | BJ146: 76.921373 | BK146: 76.924599
A147: 12 | G147: 0.05596146918 | Z147: 78 | BH147: 77.92191 | BI147: 77.917304 | BJ147: 77.921141 | BK147: 77.920397 | BL147: 77.92798
A148: 13 | Z148: 79 | BH148: 78.92086 | BI148: 78.918497 | BJ148: 78.9183361 | BK148: 78.920087 | BL148: 78.92393
A149: 14 | H149: 0.03624207148 | Z149: 80 | BI149: 79.9165205 | BJ149: 79.9185284 | BK149: 79.916375 | BL149: 79.922502 | BM149: 79.92443
A150: 15 | Z150: 81 | BI150: 80.917991 | BJ150: 80.91629 | BK150: 80.916578 | BL150: 80.919007 | BM150: 80.92329
A151: 16 | I151: -0.006543713778 | Z151: 82 | BI151: 81.916709 | BJ151: 81.916803 | BK151: 81.913483 | BL151: 81.918183 | BM151: 81.918413
A152: 17 | Z152: 83 | BJ152: 82.915164 | BK152: 82.914134 | BL152: 82.915205 | BM152: 82.91762
A153: 18 | Z153: 84 | BJ153: 83.916523 | BK153: 83.9115064 | BL153: 83.914384 | BM153: 83.913428 | BN153: 83.920889
A154: 19 | J154: -0.009989251734 | Z154: 85 | BK154: 84.9125371 | BL154: 84.9117996 | BM154: 84.912942 | BN154: 84.916442
Z155: 86 | BK155: 85.910614 | BL155: 85.9111781 | BM155: 85.9092732 | BN155: 85.914934 | BO155: 85.91633
Z156: 87 | BL156: 86.9091836 | BM156: 86.9088902 | BN156: 86.9108888 | BO156: 86.91473
Z157: 88 | BL157: 87.911324 | BM157: 87.9056249 | BN157: 87.909503 | BO157: 87.91023
Z158: 89 | BM158: 88.907458 | BN158: 88.905856 | BO158: 88.9089003 | BP158: 88.913451
Z159: 90 | BN159: 89.9071599 | BO159: 89.904708 | BP159: 89.911268
Z160: 91 | BN160: 90.9073007 | BO160: 90.9056442 | BP160: 90.906992 | BQ160: 90.911757
Z161: 92 | BN161: 91.908941 | BO161: 91.9050392 | BP161: 91.9050392 | BQ161: 91.906809 | BR161: 91.91526
Z162: 97 | BN162: 92.90958 | BO162: 92.9064771 | BP162: 92.906378 | BQ162: 92.906814 | BR162: 92.910242
Z163: 97 | BO163: 93.9063191 | BP163: 93.9072819 | BQ163: 93.9050862 | BR163: 93.909655 | BS163: 93.911357
Z164: 97 | BO164: 94.9080373 | BP164: 94.9068316 | BQ164: 94.9058379 | BR164: 94.907662 | BS164: 94.910411
Z165: 96 | BO165: 95.908272 | BP165: 95.908097 | BQ165: 95.9046755 | BR165: 95.907868 | BS165: 95.907596 | BT165: 95.914511
Z166: 97 | BP166: 96.908093 | BQ166: 96.9060179 | BR166: 96.906362 | BS166: 96.9076
Z167: 98 | BP167: 97.910327 | BQ167: 97.905405 | BR167: 97.907211 | BS167: 97.905287 | BT167: 97.910716 | BU167: 97.91276
Z168: 99 | BQ168: 98.9077087 | BR168: 98.9062522 | BS168: 98.9059371 | BT168: 98.908195 | BU168: 98.91185
Z169: 100 | BQ169: 99.907473 | BR169: 99.9076558 | BS169: 99.9042175 | BT169: 99.908114 | BU169: 99.908502
Z170: 101 | BR170: 100.907325 | BS170: 100.9055808 | BT170: 100.906162 | BU170: 100.90829
Z171: 102 | BR171: 101.90918 | BS171: 101.9043475 | BT171: 101.906842 | BU171: 101.905609 | BV171: 101.91162
Z172: 103 | BS172: 102.9063218 | BT172: 102.905503 | BU172: 102.906089 | BV172: 102.90897
Z173: 104 | BS173: 103.905422 | BT173: 103.906653 | BU173: 103.904026 | BV173: 103.908588 | BW173: 103.90998
Z174: 105 | BT174: 104.905684 | BU174: 104.905075 | BV174: 104.906522 | BW174: 104.909462
Z175: 106 | BT175: 105.907276 | BU175: 105.903475 | BV175: 105.906678 | BW175: 105.906461 | BX175: 105.913488
Z176: 107 | BT176: 106.90675 | BU176: 106.90513 | BV176: 106.905095 | BW176: 106.90616 | BX176: 106.91036
Z177: 108 | BU177: 107.903894 | BV177: 107.905956 | BW177: 107.904186 | BX177: 107.90971 | BY177: 107.91208
Z178: 109 | BU178: 108.905952 | BV178: 108.904754 | BW178: 108.904949 | BX178: 108.907113 | BY178: 108.9113
Z179: 110 | BU179: 109.905169 | BV179: 109.906113 | BW179: 109.903007 | BX179: 109.907237 | BY179: 109.907854
Z180: 111 | BV180: 110.905286 | BW180: 110.904182 | BX180: 110.905094 | BY180: 110.90774
Z181: 112 | BV181: 111.907011 | BW181: 111.9027614 | BX181: 111.905529 | BY181: 111.904823 | BZ181: 111.91255 | CA181: 111.91675
Z182: 113 | BV182: 112.906559 | BW182: 112.9044013 | BX182: 112.904056 | BY182: 112.905172 | BZ182: 112.909348 | CA182: 112.91568
Z183: 114 | BW183: 113.9033607 | BX183: 113.904911 | BY183: 113.902781 | BZ183: 113.90889 | CA183: 113.91177
Z184: 115 | BW184: 114.905429 | BX184: 114.903875 | BY184: 114.9033441 | BZ184: 114.906597 | CA184: 114.91152
Z185: 116 | BW185: 115.904758 | BX185: 115.905257 | BY185: 115.9017435 | BZ185: 115.90668 | CA185: 115.90836
Z186: 117 | BX186: 116.904515 | BY186: 116.9029536 | BZ186: 116.904827 | CA186: 116.908573
Z187: 118 | BX187: 117.90612 | BY187: 117.9016066 | BZ187: 117.905564 | CA187: 117.905882
Z188: 119 | BX188: 118.905819 | BY188: 118.9033102 | BZ188: 118.903937 | CA188: 118.9064
Z189: 120 | BX189: 119.908 | BY189: 119.902199 | BZ189: 119.905077 | CA189: 119.904021 | CB189: 119.90982
Z190: 121 | BX190: 120.907845 | BY190: 120.9042387 | BZ190: 120.9038237 | CA190: 120.904983 | CB190: 120.90753
Z191: 122 | BY191: 121.90344 | BZ191: 121.9051818 | CA191: 121.903055 | CB191: 121.9075 | CC191: 121.90857
Z192: 123 | BY192: 122.905721 | BZ192: 122.904222 | CA192: 122.904278 | CB192: 122.90557 | CC192: 122.90844
Z193: 124 | BY193: 123.905271 | BZ193: 123.905944 | CA193: 123.902825 | CB193: 123.906215 | CC193: 123.90612 | CD193: 123.91248
Z194: 125 | BZ194: 124.905259 | CA194: 124.904435 | CB194: 124.904626 | CC194: 124.90649 | CD194: 124.90978
Z195: 126 | BZ195: 125.907245 | CA195: 125.90331 | CB195: 125.905624 | CC195: 125.905624 | CD195: 125.90947 | CE195: 125.91137
Z196: 127 | BZ196: 126.90692 | CA196: 126.905222 | CB196: 126.904477 | CC196: 126.90519 | CD196: 126.907455 | CE196: 126.91116
Z197: 128 | CA197: 127.904464 | CB197: 127.905815 | CC197: 127.9035308 | CD197: 127.907746 | CE197: 127.908232
Z198: 129 | CA198: 128.906595 | CB198: 128.904986 | CC198: 128.9047801 | CD198: 128.905998 | CE198: 128.908624
Z199: 130 | CA199: 129.906229 | CB199: 129.906713 | CC199: 129.9035095 | CD199: 129.90675 | CE199: 129.906277 | CF199: 129.9124
B200: Z | C200: M | D200: En (MeV) | E200: Vcb (MV) | Z200: 131 | CB200: 130.906119 | CC200: 130.905076 | CD200: 130.905457 | CE200: 130.906897 | CF200: 130.91007 | CG200: 130.91469
A201: H | B201: 1 | C201: 3 | D201: 3.361407247 | E201: =B201/(1+C201^0.33) -> 0.4103443456 | Z201: 132 | CB201: 131.907992 | CC201: 131.904148 | CD201: 131.906415 | CE201: 131.905042 | CF201: 131.9101 | CG201: 131.9116
A202: He | B202: 2 | C202: 5 | D202: 3.231667064 | E202: =B202/(1+C202^0.33) -> 0.7405139671 | Z202: 133 | CB202: 132.907781 | CC202: 132.905892 | CD202: 132.905433 | CE202: 132.905992 | CF202: 132.90814 | CG202: 132.91179
A203: He | B203: 2 | C203: 6 | D203: 6.936222458 | E203: 0.712682147 | Z203: 134 | CC203: 133.905395 | CD203: 133.9067 | CE203: 133.90449 | CF203: 133.908462 | CG203: 133.909
... 571 more rows

Sheet IBA-prime
A1: NUCLEAR REACTION ANALYSIS - primed values to invert collision
A2: ENTER VALUES OF DESIRED REACTION IN SHADED CELLS | BW2: x | DQ2: X
A3: ENTER EXCITED STATE E LEVEL FOR NON-GROUND STATE REACTIONS
A5: IBA INPUT GRID | C5: Z | D5: M | G5: TARGET MATRIX GRID | K5: Mass in amu, Energy in MeV.
A6: Projectile= | C6: =+ZT -> 1 | D6: =+MT -> 1 | G6: Zmatrix= | H6: 32 | K6: Z1,M1=incident atomic #(zI), mass(mI)
A7: Target= | C7: =+ZI -> 6 | D7: =+MI -> 12 | G7: Mmatrix= | H7: 72 | K7: Z2,M2=target atomic #(zT), mass(mT)
A8: Reaction Product= | C8: =+ZD -> 1 | D8: =+MD -> 1 | K8: Z3,M3=detected reaction particle atomic #(zD),mass(mD)
A9: Incident Energy= | D9: =ENERGY1*D6/(MI) -> 1 | E9: MeV | G9: Vcoulomb= | H9: =((D6+D7)/D7)*C6*C7/(D6^0.33+D7^0.33) -> 1.987437306 | I9: MeV | K9: Z4,M4=residual atomic #(zR),mass(mR)
A10: Detector Angle= | D10: 116 | E10: degrees | F10: have to change the lab angle to get these com angles to be the same
A11: Mylar thicknes= | D11: =+IBA!D11 -> 13 | E11: microns
A12: Excited state E= | D12: 0 | E12: ="MeV above ground state "&$AC$65 -> MeV above ground state 12C
A14: NUCLEAR REACTION ANALYSIS INFORMATION
A15: Reaction | C15: =($AC$62&$AC$58&$AC$65) -> 12C(1H,1H)12C | P15: =0.95*494 -> 469.3
A16: Q-Value | D16: =((INDEX($Z$69:$DQ$310,$D$6+1,$C$6+1+1)+INDEX($Z$69:$DQ$310,$D$7+1,$C$7+1+1)-INDEX($Z$69:$DQ$310,$D$8+1,$C$8+1+1)-INDEX($Z$69:$DQ$310,$D$32+1,$B$32+1+1))*931.48)-$D$12 -> 0 | E16: MeV | F16: Matrix | S16: 180/PI | T16: =180/PI() -> 57.29577951
A17: Detected Energy (Ed) | D17: =T31 -> 0.7863490137 | E17: MeV | F17: =D67 -> 0.444593836 | G17: RBS | H17: ERD | K17: lab | L17: com | S17: x= | T17: =+D6/D7 -> 0.08333333333
A18: Rutherford Cross Section | G18: =D46/1000 -> 0.08949348823 | H18: =D69/1000 -> -2.59922998 | I18: b/sr | K18: =+G18 -> 0.08949348823 | L18: =+K18/L38 -> 0.09670084416 | S18: theta= | T18: =+D10/T16 -> 2.024581932
S19: sin(theta) | T19: =SIN(T18) -> 0.8987940463
A20: REACTION CALCULATIONS CHECKS AND INFORMATION | S20: cos(theta) | T20: =COS(T18) -> -0.4383711468
A21: Mass of comp nucl.= | D21: =INDEX($Z$69:$DQ$310,$D$6+$D$7+1,$C$6+$C$7+1+1) -> 13.0057387 | E21: M1= | F21: =INDEX($Z$69:$DQ$310,$D$6+1,$C$6+1+1) -> 1.00782522 | G21: M2= | H21: =INDEX($Z$69:$DQ$310,$D$7+1,$C$7+1+1) -> 12 | S21: sin-thetac | T21: =+T19*(T17*T20+(1-T17^2*T19^2)^0.5) -> 0.8634356308
A22: Compound Nucleus | D22: =INDEX($Z$69:$DQ$310,($D$6+$D$7)+1,1)&INDEX($Z$69:$DQ$310,1,($C$6+$C$7+1)+1) -> 13N | E22: M3= | F22: =INDEX($Z$69:$DQ$310,$D$8+1,$C$8+1+1) -> 1.00782522 | G22: M4= | H22: =INDEX($Z$69:$DQ$310,$D$32+1,$B$32+1+1) -> 12 | S22: thetac | T22: =ASIN(T21)*T16 -> 59.70455194
A23: E of Compound Nucl.= | D23: =D16+D9*(1-F21/D21) -> 0.9225091905 | E23: MeV | F23: Eo(cm)= | G23: =T47 -> 0.9230769231 | H23: MeV | K23: delta= | M23: -2.879793266 | T23: =180-T22 -> 120.2954481
A24: Threshold = | D24: =-1*((F21+H21)/H21)*D16 -> 0 | E24: MeV | F24: E(coulomb)= | G24: =(($C$7*$C$6*10000000000000*$T$59)/(1.4*($D$7^(1/3)+$D$6^(1/3))))*(1+$D$6/$D$7) -> 2.031779346 | H24: MeV | AJ24: macro for energy scans
A25: =+$AC$62&"+"&+$AC$61&" E level on the "&$D$22&" NDS=" -> 12C+1H E level on the 13N NDS= | E25: =((F21-$D$6)+(H21-$D$7)-($D$21-ROUND($D$21,0)))*931.48 -> 1.94355165
A27: Emitted Energy (E3) | D27: =$T$31 -> 0.7863490137 | E27: MeV | S27: mumat | T27: =(H7/$D$6) -> 72 | U27: kmat | V27: =(($W$71+($T$27^2-$W$73)^0.5)/(1+$T$27))^2 -> 0.9608301803
U28: Reaction particle angle | W28: com angle in IBA tab | X28: =+ETA -> 120 | Y28: use goal seek function to find det. angle that makes these two the same
S29: mu | T29: =$D$7/$D$6 -> 12 | U29: psi | V29: =$D$10 -> 116 | W29: com angle in primed | X29: =180-ASIN((T33/(T30*T58))^0.5*SIN(D36/T16))*T16 -> 120.2954481 | Y29: =180-X29 -> 59.70455194
A30: RESIDUAL SPECIES INFORMATION | S30: etotal | T30: =$D$9+$D$16 -> 1 | U30: psirad | V30: =($D$10/(180/PI())) -> 2.024581932 | X30: =((T31/T30)/T58)^0.5 -> 0.9606601583
D31: (lab) | F31: (c.m.) | Q31: B<D | R31: =IF(T56<T58,1,0) -> 1 | S31: energy3 | T31: =$T$30*$T$56*($V$31+($T$58/$T$56-$V$35^2)^0.5)^2 -> 0.7863490137 | U31: cospsi | V31: =COS($V$30) -> -0.4383711468
A32: Z4= | B32: =$C$7+$T$42 -> 6 | C32: M4= | D32: =$D$7+$T$43 -> 12 | Q32: B>D | R32: =IF(R31=1,0,1) -> 0 | U32: zeta | V32: =((F22*T31/(H22*T35))^0.5*SIN(D43/T16))*T16 -> 28.63123157
A33: Species= | C33: =$AC$65 -> 12C | J33: Cross Section for inverted collision | Q33: psi<sin-1(D/B^.5) | R33: =IF(D10<ASIN((T58/T56)^0.5),1,0) ->  | T33: =T31 -> 0.7863490137
A34: Residual Energy= | D34: =($T$30-$T$31) -> 0.2136509863 | E34: MeV | F34: =$T$30*$T$57 -> 0.07100591716 | G34: MeV
A35: Residual angle= | D35: =+V32 -> 28.63123157 | E35: deg. | F35: =180-$X$29 -> 59.70455194 | G35: deg | J35: Light ion is Projectile (primed system) | Q35: A<C | R35: =IF(T55<T57,1,0) -> 0 | S35: energy4 | T35: =T30-T31 -> 0.2136509863 | U35: sinpsi | V35: =SIN($V$30) -> 0.8987940463
A36: Detector angle= | D36: =D10 -> 116 | E36: deg. | F36: =$X$29 -> 120.2954481 | G36: deg | J36: CS trabsform to com from lab for light product (M3) | Q36: A>C | R36: =IF(R35=1,0,1) -> 1 | S36: + | T36: =$T$30*$T$55*(COS($V$32/$T$16)+($T$57/$T$55-SIN($V$32/$T$16)^2)^0.5)^2 -> 0.2188106291
A37: Detected energy= | D37: =IF(ISERR($T$35)=1,"N.Det.",$T$35) -> 0.2136509863 | E37: =IF(ISERR($T$35)=1,"","MeV") -> MeV | G37: MeV | J37: Input the lab cross sections from SigmaBase | Q37: psi<sin-1(C/A^.5) | S37: - | T37: =$T$30*$T$55*(COS($V$32/$T$16)-($T$57/$T$55-SIN($V$32/$T$16)^2)^0.5)^2 -> 0
J38: CS3lab/CS3com= | L38: =(T31/T30)/(T55*T57*(T58/T56-SIN(D36/T16)^2))^0.5 -> 0.9254674972 | N38: 180 deg scat
A39: RBS INFORMATION | D39: (lab) | F39: (c.m.) | J39: elastic= | L39: =1/(D6*D7*((D7/D6)^2-SIN(D10/T16)^2)^0.5/((D6+D7)^2*(D17/D9))) -> 0.9254674972 | M39: lab | N39: =(1-D6/D7)^2 -> 0.8402777778
A40: Scattered Particle | D40: =$AC$61 -> 1H | K40: E(MeV) | L40: lab/com | M40: mb/sr | N40: com | S40: qvalue | T40: =D16 -> 0 | U40: sinpsi2 | V40: =($V$35^2) -> 0.8078307377
A41: Target Atom | D41: =$AC$62 -> 12C | L41: =+L38 -> 0.9254674972 | M41: =+G18 -> 0.08949348823 | N41: mb/sr
A42: Incident Energy= | D42: =$D$9 -> 1 | E42: MeV | F42: =(D42/(1+$D$6/$D$7)) -> 0.9230769231 | G42: MeV | K42: 0.1 | L42: 0.9254674972 | M42: 8.949348823 | N42: =+M42/L42 -> 9.670084416 | S42: deltaZ | T42: =$C$6-$C$8 -> 0
A43: Scattering Angle= | D43: =D10 -> 116 | E43: degrees | F43: =$X$69 -> 120.2954516 | G43: deg | K43: 0.2 | L43: 0.9254674972 | M43: 2.237337206 | N43: =+M43/L43 -> 2.417521104 | S43: deltaM | T43: =$D$6-$D$8 -> 0
A44: Recoil Angle= | D44: -3.922160263 | E44: degrees | F44: =2*D44 -> -7.844320527 | G44: deg | K44: 0.3 | L44: 0.9254674972 | M44: 0.9943720914 | N44: 1.074453824 | U44: Residual Particle angle
A45: K factor= | D45: =$T$69 -> 0.7863492157 | K45: 0.4 | L45: 0.9254674972 | M45: 0.5593343014 | N45: 0.604380276 | S45: total system | U45: zeta | V45: =$D$35 -> 28.63123157 | W45: cm angle | X45: =180-X29 -> 59.70455194
A46: Rutherford xsection= | D46: =$T$61*1000 -> 89.49348823 | E46: mb/sr | F46: =$T$62*1000 -> 96.70063601 | G46: mb/sr | K46: 0.5 | L46: 0.9254674972 | M46: 0.3579739529 | N46: =+M46/L46 -> 0.3868033767 | S46: energy [MeV]= | T46: =(INDEX($Z$69:$DQ$310,$D$6+1,$C$6+1)+INDEX($Z$69:$DQ$310,$D$7+1,$C$7+1)-INDEX($Z$69:$DQ$310,($D$6+$D$7)+1,($C$6+$C$7)+1))*931.48+$T$47 -> 19.2385148 | U46: zetarad | V46: =+V45/T16 -> 0.4997092597
A47: Scattered Energy= | D47: =$T$70 -> 0.7863492157 | E47: MeV | F47: =$D$7*$D$7*D42/($D$6+$D$7)^2 -> 0.8520710059 | G47: MeV | K47: 0.6 | L47: 0.9254674972 | M47: 0.2485930228 | N47: 0.268613456 | S47: E1[cm frame]= | T47: =$D$9/(1+$D$6/$D$7) -> 0.9230769231 | U47: coszeta | V47: =COS($V$46) -> 0.8777219131
A48: Recoil Energy= | D48: 0.9555084301 | E48: MeV | F48: =$D$6*$D$7*D42/($D$6+$D$7)^2 -> 0.07100591716 | G48: MeV | K48: 0.7 | L48: 0.9254674972 | M48: 0.1826397719 | N48: 0.1973486616 | U48: sinzeta | V48: =SIN($V$46) -> 0.4791703698
K49: 0.8 | L49: 0.9254674972 | M49: 0.1398335754 | N49: 0.151095069 | U49: sinzeta2 | V49: =SIN($V$46)^2 -> 0.2296042433
K50: 0.9 | L50: 0.9254674972 | M50: 0.1104857879 | N50: 0.1193837582
A51: ERD INPUT VALUES GRID | K51: 1 | L51: 0.9254674972 | M51: 0.08949348823 | N51: 0.09670084416
C52: Atomic# | D52: 2 | E52: Species | K52: 1.1 | L52: 0.9254674972 | M52: 0.07396156052 | N52: 0.07991805303
A53: Incident Ion | C53: =C6 -> 1 | D53: =D6 -> 1 | E53: =INDEX($Z$69:$DQ$310,$D$53+1,1)&INDEX($Z$69:$DQ$310,1,$C$53+1+1) -> 1H | K53: 1.2 | L53: 0.9254674972 | M53: 0.06214825571 | N53: 0.067153364 | T53: NRA Calculations
A54: Recoil Atom | C54: =C7 -> 6 | D54: =D7 -> 12 | E54: =INDEX($Z$69:$DQ$310,$D$54+1,1)&INDEX($Z$69:$DQ$310,1,$C$54+1+1) -> 12C | K54: 1.3 | L54: 0.9254674972 | M54: 0.05295472676 | N54: 0.05721943442 | T54: Green book coefficients
A55: Substrate | C55: =H6 -> 32 | D55: =H7 -> 72 | E55: =INDEX($Z$69:$DQ$310,$D$55+1,1)&INDEX($Z$69:$DQ$310,1,$C$55+1+1) -> 72Ge | K55: 1.4 | L55: 0.9254674972 | M55: 0.04565994297 | N55: 0.04933716539 | R55: =D6*D7/(D6+D7)^2 -> 0.07100591716 | S55: A | T55: =($D$6*$D$32*($D$9/$T$30))/(($D$6+$D$7)*($D$8+$D$32)) -> 0.07100591716 | U55: =(T55*T57) -> 0.005041840272 | V55: AC
A56: Recoil Angle= | D56: =D10 -> 116 | E56: degrees | K56: 1.5 | L56: 0.9254674972 | M56: 0.03977488366 | N56: 0.04297815296 | R56: =+D6^2/(D6+D7)^2 -> 0.005917159763 | S56: B | T56: =($D$6*$D$8*($D$9/$T$30))/(($D$6+$D$7)*($D$8+$D$32)) -> 0.005917159763 | U56: =(T56*T58) -> 0.005041840272 | V56: BD
A57: Incident Energy= | D57: =D9 -> 1 | E57: MeV | K57: 1.6 | L57: 0.9254674972 | M57: 0.03495839384 | N57: 0.03777376725 | S57: C | T57: =(($D$7*$D$8)/(($D$6+$D$7)*($D$8+$D$32)))*(1+($D$6*$D$16)/($D$7*$T$30)) -> 0.07100591716 | U57: =SUM(T55:T58) -> 1 | V57: Sum
A58: Mylar thicknes= | D58: =D11 -> 13 | E58: microns | K58: 1.7 | L58: 0.9254674972 | M58: 0.03096660492 | N58: =+M58/L58 -> 0.03346049971 | R58: =+D7^2/(D7+D6)^2 -> 0.8520710059 | S58: D | T58: =(($D$7*$D$32)/(($D$6+$D$7)*($D$8+$D$32)))*(1+($D$6*$D$16)/($D$7*$T$30)) -> 0.8520710059 | AB58: RXN | AC58: =("("&AC61&","&AC64&")") -> (1H,1H)
K59: 1.8 | L59: 0.9254674972 | M59: 0.02762144698 | N59: 0.02984593956 | S59: esqrd | T59: =(14.395/1000000)/100000000 -> 1.4395e-13 | U59: MeV cm
A60: ERD INFORMATION | K60: 1.9 | L60: 0.9254674972 | M60: 0.02479043995 | N60: 0.02678693744 | AB60: GAMMA | AC60: g-ray
A61: Recoil Energy= | D61: =$T$76 -> 0.2130177515 | E61: MeV | K61: 2 | L61: 0.9254674972 | M61: 0.02237337206 | N61: 0.02417521104 | R61: Rutherford | S61: dsigma | T61: =(U61*U62/U63)/1E-24 -> 0.08949348823 | U61: =($C$6*$C$7*$T$59/(2*$D$9))^2 -> 1.864944225e-25 | V61: =($C$6*$C$7*$T$59/(2*$F$42))^2 -> 2.188719264e-25 | AB61: INCIDENT | AC61: =INDEX($Z$69:$DQ$310,$D$6+1,1)&INDEX($Z$69:$DQ$310,1,$C$6+1+1) -> 1H
A62: Detected Energy= | D62: =B106 ->  | E62: Mev | K62: 2.1 | L62: 0.9254674972 | M62: 0.02029330799 | N62: 0.02192762906 | Q62: 180 | R62: =0.01*(C6*C7*1.4395/(4*D9))^2 -> 0.04662360563 | S62: cmsigma | T62: =+V61/4/V63/1E-24 -> 0.09670063601 | U62: =($W$71+(1-($D$6/$D$7)^2*$W$73)^0.5)^2 -> 0.3122814384 | AB62: TARGET | AC62: =INDEX($Z$69:$DQ$310,$D$7+1,1)&INDEX($Z$69:$DQ$310,1,$C$7+1+1) -> 12C | AE62: 3He(3He,2p)a Q value
A63: Recoiled Particle | D63: =$E$54 -> 12C | K63: 2.2 | L63: 0.9254674972 | M63: 0.01849039013 | N63: 0.01997951326 | Q63: approx | R63: =+R62*(SIN(W69/T16/2)^-4+2*(D6/D7)^2) -> 0.09078887196 | U63: =($W$72^4*(1-($D$6/$D$7)^2*$W$73)^0.5) -> 0.6507595989 | V63: =SIN(T23/T16/2)^4 -> 0.5658492422 | X63: =+(C6*C7*T59/(4*F42))^2/SIN(X69/T16/2)^4 -> 9.670062905e-26 | AB63: COMPOUND | AC63: =INDEX($Z$69:$DQ$310,($D$6+$D$7)+1,1)&INDEX($Z$69:$DQ$310,1,($C$6+$C$7+1)+1) -> 13N | AE63: 12.85937947
A64: Detector Angle= | D64: =$D$56 -> 116 | E64: degrees | K64: 2.3 | L64: 0.9254674972 | M64: 0.0169174836 | N64: 0.01827993273 | R64: =+R62/R63 -> 0.5135387699 | T64: =+T62/T61 -> 1.08053265 | AB64: DETECTED | AC64: =INDEX($Z$69:$DQ$310,$D$8+1,1)&INDEX($Z$69:$DQ$310,1,$C$8+1+1) -> 1H
A65: Scattered Particle | D65: =$E$53 -> 1H | K65: 2.4 | L65: 0.9254674972 | M65: 0.01553706393 | N65: 0.016788341 | T65: =1/T64 -> 0.9254694894 | AB65: RESIDUAL | AC65: =INDEX($Z$69:$DQ$310,$D$32+1,1)&INDEX($Z$69:$DQ$310,1,$B$32+1+1) -> 12C
A66: Scattered Energy= | D66: =$D$9*V27 -> 0.9608301803 | E66: =IF(ISERR($W$76)=1,$S$87,$S$86) -> MeV at MAX ANGLE | K66: 2.5 | L66: 0.9254674972 | M66: 0.01431895812 | N66: 0.01547213507 | Z66: mtable
A67: scatt energy after foil= | D67: =B95 -> 0.444593836 | E67: =IF(ISERR($W$76)=1,$S$87,$S$86) -> MeV at MAX ANGLE | K67: 2.6 | L67: 0.9254674972 | M67: 0.01323868169 | N67: 0.0143048586 | W67: lab | X67: c.m. | AA67: Z
A68: Max. Scat. Angle= | D68: =IF(ISERR($W$76)=1,180,$W$76) ->  | E68: degrees | K68: 2.7 | L68: 0.9254674972 | M68: 0.01227619866 | N68: 0.01326486203 | S68: MeV | V68: RBS Scattering angle | Z68: M | AA68: 0 | AB68: 1 | AC68: 2 | AD68: 3 | AE68: 4 | AF68: 5 | AG68: 6 | AH68: 7 | AI68: 8 | AJ68: 9 | AK68: 10 | AL68: 11 | AM68: 12 | AN68: 13 | AO68: 14 | AP68: 15 | AQ68: 16 | AR68: 17 | AS68: 18 | AT68: 19 | AU68: 20 | AV68: 21 | AW68: 22 | AX68: 23 | AY68: 24 | AZ68: 25 | BA68: 26 | BB68: 27 | BC68: 28 | BD68: 29 | BE68: 30 | BF68: 31 | BG68: 32 | BH68: 33 | BI68: 34 | BJ68: 35 | BK68: 36 | BL68: 37 | BM68: 38 | BN68: 39 | BO68: 40 | BP68: 41 | BQ68: 42 | BR68: 43 | BS68: 44 | BT68: 45 | BU68: 46 | BV68: 47 | BW68: 48 | BX68: 49 | BY68: 50 | BZ68: 51 | CA68: 52 | CB68: 53 | CC68: 54 | CD68: 55 | CE68: 56 | CF68: 57 | CG68: 58 | CH68: 59 | CI68: 60 | CJ68: 61 | CK68: 62 | CL68: 63 | CM68: 64 | CN68: 65 | CO68: 66 | CP68: 67 | CQ68: 68 | CR68: 69 | CS68: 70 | CT68: 71 | CU68: 72 | CV68: 73 | CW68: 74 | CX68: 75 | CY68: 76 | CZ68: 77 | DA68: 78 | DB68: 79 | DC68: 80 | DD68: 81 | DE68: 82 | DF68: 83 | DG68: 84 | DH68: 85 | DI68: 86 | DJ68: 87 | DK68: 88 | DL68: 89 | DM68: 90 | DN68: 91 | DO68: 92 | DP68: 93 | DQ68: 94
A69: Cross Section= | D69: =20.73*(C53*C54*(D53+D54)/(2*D54*D57))^2/COS(D56*3.14159/180)^3 -> -2599.22998 | E69: mb/sr | K69: 2.8 | L69: 0.9254674972 | M69: 0.01141498574 | N69: 0.01233429135 | S69: K | T69: =(($W$71+($T$29^2-$W$73)^0.5)/(1+$T$29))^2 -> 0.7863492157 | V69: theta | W69: =$D$43 -> 116 | X69: =($D$43/T16+ASIN($D$6*W72/$D$7))*T16 -> 120.2954516 | Z69: g-ray | AA69: n | AB69: H | AC69: He | AD69: Li | AE69: Be | AF69: B | AG69: C | AH69: N | AI69: O | AJ69: F | AK69: Ne | AL69: Na | AM69: Mg | AN69: Al | AO69: Si | AP69: P | AQ69: S | AR69: Cl | AS69: Ar | AT69: K | AU69: Ca | AV69: Sc | AW69: Ti | AX69: V | AY69: Cr | AZ69: Mn | BA69: Fe | BB69: Co | BC69: Ni | BD69: Cu | BE69: Zn | BF69: Ga | BG69: Ge | BH69: As | BI69: Se | BJ69: Br | BK69: Kr | BL69: Rb | BM69: Sr | BN69: Y | BO69: Zr | BP69: Nb | BQ69: Mo | BR69: Tc | BS69: Ru | BT69: Rh | BU69: Pd | BV69: Ag | BW69: Cd | BX69: In | BY69: Sn | BZ69: Sb | CA69: Te | CB69: I | CC69: Xe | CD69: Cs | CE69: Ba | CF69: La | CG69: Ce | CH69: Pr | CI69: Nd | CJ69: Pm | CK69: Sm | CL69: Eu | CM69: Gd | CN69: Tb | CO69: Dy | CP69: Ho | CQ69: Er | CR69: Tm | CS69: Yb | CT69: Lu | CU69: Hf | CV69: Ta | CW69: W | CX69: Re | CY69: Os | CZ69: Ir | DA69: Pt | DB69: Au | DC69: Hg | DD69: Tl | DE69: Pb | DF69: Bi | DG69: Po | DH69: At | DI69: Rn | DJ69: Fr | DK69: Ra | DL69: Ac | DM69: Th | DN69: Pa | DO69: U | DP69: Np | DQ69: Pu
K70: 2.9 | L70: 0.9254674972 | M70: 0.01064131846 | N70: 0.01149831679 | S70: escatter | T70: =$T$69*$D$9 -> 0.7863492157 | V70: thetarad | W70: =W69*3.14159/180 -> 2.024580222 | X70: 2.886752044 | Z70: 1 | AA70: 1.008664967 | AB70: 1.00782522
A71: ........................................................... | K71: 3 | L71: 0.9254674972 | M71: 0.009943720914 | N71: 0.01074453824 | S71: bsrecoilE | T71: =(1-$T$69)*$D$9 -> 0.2136507843 | V71: costheta | W71: =COS($W$70) -> -0.4383696098 | X71: =COS(X70) -> -0.9677034888 | Z71: 2 | AB71: 2.014101787
A72: Mylar foil effect on detected energy | V72: sintheta | W72: =SIN($W$70) -> 0.898794796 | X72: =SIN(X70) -> 0.2520911694 | Z72: 3 | AB72: 3.016049286 | AC72: 3.016029297
S73: erdmu | T73: =($D$55/$D$53) -> 72 | V73: sintheta2 | W73: =(W72^2) -> 0.8078320852 | X73: =SIN(X70)^2 -> 0.06354995769 | Z73: 4 | AB73: 4.02783 | AC73: 4.00260325 | AD73: 4.02697
A74: logR = mlogE + b | S74: erdK | T74: =IF(ISERR($W$76)=1,$T$83,$T$84) ->  | Z74: 5 | AB74: 5.03627 | AC74: 5.01222 | AD74: 5.0125
A75: logE = (logR - b)/m | S75: erdescatter | T75: =$T$74*$D$57 ->  | V75: ERD Scattering angle | Z75: 6 | AC75: 6.018891 | AD75: 6.015121 | AE75: 6.019727
S76: erdrecoilE | T76: =4*$D$53*$D$54*$D$57*$W$85/($D$53+$D$54)^2 -> 0.2130177515 | V76: phi | Z76: 7 | AC76: 7.028031 | AD76: 7.016003 | AE76: 7.0169299
A77: R in um -- E in MeV | V77: phirad | Z77: 8 | AD77: 8.022489 | AE77: 8.00530515 | AF77: 8.0246075
E78: calc | V78: cosphi | W78: =COS($W$77) ->  | Z78: 9 | AE78: 9.0121825 | AF78: 9.0133291 | AG78: 9.031038
A79: input from nra | V79: sinphi | W79: =SIN($W$77) ->  | Z79: 10 | AE79: 10.0135347 | AF79: 10.012938 | AG79: 10.0168576
A80: Z | B80: =C8 -> 1 | E80: m | F80: =IF(B80>9,0,INDEX($B$111:$J$129,B81,B80)) -> 1.669452028 | V80: sinphi2 | W80: =($W$79^2) ->  | Z80: 11 | AE80: 11.02166 | AF80: 11.0093053 | AG80: 11.0114331 | AH80: 11.02708
A81: M | B81: =D8 -> 1 | E81: b | F81: =IF(B80>9,0,INDEX($B$136:$J$154,B81,B80)) -> 1.283310182 | Z81: 12 | AE81: 12.02687 | AF81: 12.0143526 | AG81: 12 | AH81: 12.018613
A82: E3 | B82: =D27 -> 0.7863490137 | C82: MeV | E82: R | F82: =10^(LOG(B82)*F80+F81) -> 12.85419873 | G82: um | V82: ERD Recoil angle | Z82: 13 | AG82: 13.00335484 | AH82: 13.0057387
E83: x | F83: =F82-B84 -> -0.1458012714 | G83: um | S83: erdk if 1 | T83: =(($W$86+($T$73^2-$W$87)^0.5)/(1+$T$73))^2 -> 0.9962853539 | V83: recoilangle | W83: =D56 -> 116 | Z83: 14 | AG83: 14.00324199 | AH83: 14.00307401 | AI83: 14.0085972
A84: thick= | B84: =D11 -> 13 | C84: um | S84: erdk if 2 | T84: =(($W$78+($T$73^2-$W$80)^0.5)/(1+$T$73))^2 ->  | V84: sinrecoil | W84: 0.5 | Z84: 15 | AH84: 15.00010898 | AI84: 15.0030654 | AJ84: 15.01895
V85: cosrecoil2 | W85: 0.75 | Z85: 16 | AH85: 16.0060994 | AI85: 15.99491464 | AJ85: 16.011479
A86: Ed | B86: =10^((LOG(F83)-F81)/F80) ->  | C86: MeV | S86: MeV at MAX ANGLE | V86: cosrecoil | W86: 0.8660254038 | Z86: 17 | AI86: 16.9991306 | AJ86: 17.00209518
S87: MeV at DET. ANGLE | V87: sinrecoil2 | W87: =(W84^2) -> 0.25 | Z87: 18 | AI87: 17.99915939 | AJ87: 18.0009366 | AK87: 18.00571
A88: input from RBS | Z88: 19 | AI88: 19.0035764 | AJ88: 18.99840325 | AK88: 19.0018797
A89: Z | B89: =C53 -> 1 | E89: m | F89: =IF(B89>9,0,INDEX($B$111:$J$129,B90,B89)) -> 1.669452028 | Z89: 20 | AJ89: 19.9999817 | AK89: 19.9924391 | AL89: 20.007347
A90: M | B90: =D53 -> 1 | E90: b | F90: =IF(B89>9,0,INDEX($B$136:$J$154,B90,B89)) -> 1.283310182 | Z90: 21 | AK90: 20.9938453 | AL90: 20.9976535
A91: E3 | B91: =D66 -> 0.9608301803 | C91: MeV | E91: R | F91: =10^(LOG(B91)*F89+F90) -> 17.9613747 | G91: um | Z91: 22 | AK91: 21.9913837 | AL91: 21.994436 | AM91: 21.9995769
E92: x | F92: =F91-B93 -> 4.961374701 | G92: um | Z92: 23 | AK92: 22.9944658 | AL92: 22.989768 | AM92: 22.994125
A93: thick= | B93: =B84 -> 13 | C93: um | Z93: 24 | AL93: 23.990964 | AM93: 23.985042 | AN93: 23.999944
Z94: 25 | AM94: 24.985838 | AN94: 24.9904317
A95: Ed | B95: =10^((LOG(F92)-F90)/F89) -> 0.444593836 | C95: MeV | Z95: 26 | AM95: 25.982594 | AN95: 25.986894 | AO95: 25.9923316
Z96: 27 | AM96: 26.984343 | AN96: 26.981539 | AO96: 26.986704
Z97: 28 | AN97: 27.9819122 | AO97: 27.976927 | AP97: 27.992314
Z98: 29 | AO98: 28.976495 | AP98: 28.9818044
A99: input from erd | Z99: 30 | AO99: 29.97377 | AP99: 29.97831 | AQ99: 29.9849039
A100: Z | B100: =C54 -> 6 | E100: m | F100: =IF(B100>9,0,INDEX($B$111:$J$129,B101,B100)) -> 0.9860379052 | Z100: 31 | AO100: 30.975365 | AP100: 30.973762 | AQ100: 30.9796
A101: M | B101: =D54 -> 12 | E101: b | F101: =IF(B100>9,0,INDEX($B$136:$J$154,B101,B100)) -> 0.05596146918 | Z101: 32 | AP101: 31.9739087 | AQ101: 31.972071 | AR101: 31.985691
A102: E3 | B102: =D61 -> 0.2130177515 | C102: MeV | E102: R | F102: =10^(LOG(B102)*F100+F101) -> 0.2476019084 | G102: um | Z102: 33 | AP102: 32.9717264 | AQ102: 32.971459 | AR102: 32.9774526
E103: x | F103: =F102-B104 -> -12.75239809 | G103: um | Z103: 34 | AQ103: 33.9678667 | AR103: 33.973765 | AS103: 33.9802693
A104: thick= | B104: =D58 -> 13 | C104: um | Z104: 35 | AQ104: 34.9690333 | AR104: 34.9688527 | AS104: 34.9752562
Z105: 36 | AQ105: 35.9670806 | AR105: 35.968307 | AS105: 35.9675456 | AT105: 35.981293
A106: Ed | B106: =10^((LOG(F103)-F101)/F100) ->  | C106: MeV | Z106: 37 | AR106: 36.9659026 | AS106: 36.9667763 | AT106: 36.97337
Z107: 38 | AR107: 37.968009 | AS107: 37.9627322 | AT107: 37.9690801 | AU107: 37.976318
A108: slope=m | Z108: 39 | AS108: 38.964315 | AT108: 38.9637079 | AU108: 38.970711
B109: z | Z109: 40 | AS109: 39.9623831 | AT109: 39.9639988 | AU109: 39.9625907 | AV109: 39.977963
A110: m | B110: 1 | C110: 2 | D110: 3 | E110: 4 | F110: 5 | G110: 6 | H110: 7 | I110: 8 | J110: 9 | Z110: 41 | AS110: 40.9645006 | AT110: 40.9618254 | AU110: 40.9622792 | AV110: 40.9692502
A111: 1 | B111: 1.669452028 | Z111: 42 | AT111: 41.9624018 | AU111: 41.958618 | AV111: 41.9655173 | AW111: 41.973031
A112: 2 | B112: 1.621255327 | Z112: 43 | AT112: 42.960721 | AU112: 42.958767 | AV112: 42.9611541 | AW112: 42.968519
A113: 3 | B113: 1.552632849 | C113: 1.512127989 | Z113: 44 | AT113: 43.96156 | AU113: 43.955481 | AV113: 43.9594088 | AW113: 43.9596928
A114: 4 | C114: 1.504044666 | Z114: 45 | AT114: 44.960697 | AU114: 44.956193 | AV114: 44.95591 | AW114: 44.9581279
A115: 5 | Z115: 46 | AU115: 45.95369 | AV115: 45.9551739 | AW115: 45.9526327 | AX115: 45.9602032
A116: 6 | Z116: 47 | AU116: 46.954543 | AV116: 46.9524096 | AW116: 46.9517649 | AX116: 46.9549104
A117: 7 | D117: 1.299133035 | Z117: 48 | AU117: 47.952534 | AV117: 47.95223 | AW117: 47.9479467 | AX117: 47.9522569 | AY117: 47.954033
A118: 8 | Z118: 49 | AV118: 48.950022 | AW118: 48.9478705 | AX118: 48.9485166 | AY118: 48.9513377
A119: 9 | E119: 1.164183609 | Z119: 50 | AV119: 49.952186 | AW119: 49.9447858 | AX119: 49.9471613 | AY119: 49.9460463 | AZ119: 49.9542398
A120: 10 | Z120: 51 | AX120: 50.9439625 | AY120: 50.944769 | AZ120: 50.9482129
A121: 11 | F121: 1.039420726 | Z121: 52 | AX121: 51.9447786 | AY121: 51.9405097 | AZ121: 51.9455672 | BA121: 51.948114
A122: 12 | G122: 0.9860379052 | Z122: 53 | AY122: 52.940651 | AZ122: 52.9412912 | BA122: 52.9453095
A123: 13 | Z123: 54 | AY123: 53.9388822 | AZ123: 53.9403605 | BA123: 53.9396121 | BB123: 53.94846
A124: 14 | H124: 0.9204794081 | Z124: 55 | AY124: 54.9408415 | AZ124: 54.9380463 | BA124: 54.9382947 | BB124: 54.9420034
A125: 15 | Z125: 56 | AZ125: 55.9389064 | BA125: 55.9349393 | BB125: 55.9398426 | BC125: 55.942134
A126: 16 | I126: 0.9034704332 | Z126: 57 | BA126: 56.9353957 | BB126: 56.9362938 | BC126: 56.939775
A127: 17 | Z127: 58 | BA127: 57.9332778 | BB127: 57.9357553 | BC127: 57.9353471 | BD127: 57.9445394
A128: 18 | Z128: 59 | BB128: 58.9331978 | BC128: 58.9343502 | BD128: 58.9395039
A129: 19 | J129: 0.8652720275 | Z129: 60 | BB129: 59.9338202 | BC129: 59.930789 | BD129: 59.9373664 | BE129: 59.941831
Z130: 61 | BB130: 60.9324778 | BC130: 60.9310586 | BD130: 60.9334616 | BE130: 60.93926
Z131: 62 | BC131: 61.9283464 | BD131: 61.932586 | BE131: 61.934333
A132: intercept=b | Z132: 63 | BC132: 62.9296699 | BD132: 62.9295992 | BE132: 62.9332141
Z133: 64 | BC133: 63.927968 | BD133: 63.9297661 | BE133: 63.9291454 | BF133: 63.936837 | BG133: 63.94157
B134: z | Z134: 65 | BD134: 64.9277924 | BE134: 64.9292437 | BF134: 64.9327389 | BG134: 64.93944
A135: m | B135: 1 | C135: 2 | D135: 3 | E135: 4 | F135: 5 | G135: 6 | H135: 7 | I135: 8 | J135: 9 | Z135: 66 | BD135: 65.928871 | BE135: 65.9260352 | BF135: 65.9315908 | BG135: 65.933847
A136: 1 | B136: 1.283310182 | Z136: 67 | BD136: 66.927746 | BE136: 66.9271289 | BF136: 66.9282036 | BG136: 66.93296
A137: 2 | B137: 1.110307138 | Z137: 68 | BE137: 67.9248458 | BF137: 67.9279817 | BG137: 67.928104
A138: 3 | B138: 1.048439146 | C138: 0.4993683279 | Z138: 69 | BE138: 68.9265519 | BF138: 68.9255809 | BG138: 68.92797
A139: 4 | C139: 0.4306085656 | Z139: 70 | BE139: 69.9253249 | BF139: 69.9260278 | BG139: 69.9242498 | BH139: 69.930929
A140: 5 | Z140: 71 | BF140: 70.9247006 | BG140: 70.9249537 | BH140: 70.927114
A141: 6 | Z141: 72 | BF141: 71.9263651 | BG141: 71.92208 | BH141: 71.926751 | BI141: 71.927113
A142: 7 | D142: 0.2366127039 | Z142: 73 | BF142: 72.92514 | BG142: 72.9234639 | BH142: 72.923834 | BI142: 72.926775
A143: 8 | Z143: 74 | BG143: 73.9211788 | BH143: 73.9239296 | BI143: 73.9224771 | BJ143: 73.929903
A144: 9 | E144: 0.1386223901 | Z144: 75 | BG144: 74.9228599 | BH144: 74.9215955 | BI144: 74.922524 | BJ144: 74.925755
A145: 10 | F145: 0.114181246 | Z145: 76 | BG145: 75.9214027 | BH145: 75.9223934 | BI145: 75.9192066 | BJ145: 75.924527 | BK145: 75.92582
A146: 11 | Z146: 77 | BH146: 76.9206488 | BI146: 76.9199077 | BJ146: 76.921373 | BK146: 76.924599
A147: 12 | G147: 0.05596146918 | Z147: 78 | BH147: 77.92191 | BI147: 77.917304 | BJ147: 77.921141 | BK147: 77.920397 | BL147: 77.92798
A148: 13 | Z148: 79 | BH148: 78.92086 | BI148: 78.918497 | BJ148: 78.9183361 | BK148: 78.920087 | BL148: 78.92393
A149: 14 | H149: 0.03624207148 | Z149: 80 | BI149: 79.9165205 | BJ149: 79.9185284 | BK149: 79.916375 | BL149: 79.922502 | BM149: 79.92443
A150: 15 | Z150: 81 | BI150: 80.917991 | BJ150: 80.91629 | BK150: 80.916578 | BL150: 80.919007 | BM150: 80.92329
A151: 16 | I151: -0.006543713778 | Z151: 82 | BI151: 81.916709 | BJ151: 81.916803 | BK151: 81.913483 | BL151: 81.918183 | BM151: 81.918413
A152: 17 | Z152: 83 | BJ152: 82.915164 | BK152: 82.914134 | BL152: 82.915205 | BM152: 82.91762
A153: 18 | Z153: 84 | BJ153: 83.916523 | BK153: 83.9115064 | BL153: 83.914384 | BM153: 83.913428 | BN153: 83.920889
A154: 19 | J154: -0.009989251734 | Z154: 85 | BK154: 84.9125371 | BL154: 84.9117996 | BM154: 84.912942 | BN154: 84.916442
Z155: 86 | BK155: 85.910614 | BL155: 85.9111781 | BM155: 85.9092732 | BN155: 85.914934 | BO155: 85.91633
Z156: 87 | BL156: 86.9091836 | BM156: 86.9088902 | BN156: 86.9108888 | BO156: 86.91473
Z157: 88 | BL157: 87.911324 | BM157: 87.9056249 | BN157: 87.909503 | BO157: 87.91023
Z158: 89 | BM158: 88.907458 | BN158: 88.905856 | BO158: 88.9089003 | BP158: 88.913451
Z159: 90 | BN159: 89.9071599 | BO159: 89.904708 | BP159: 89.911268
Z160: 91 | BN160: 90.9073007 | BO160: 90.9056442 | BP160: 90.906992 | BQ160: 90.911757
Z161: 92 | BN161: 91.908941 | BO161: 91.9050392 | BP161: 91.9050392 | BQ161: 91.906809 | BR161: 91.91526
Z162: 97 | BN162: 92.90958 | BO162: 92.9064771 | BP162: 92.906378 | BQ162: 92.906814 | BR162: 92.910242
Z163: 97 | BO163: 93.9063191 | BP163: 93.9072819 | BQ163: 93.9050862 | BR163: 93.909655 | BS163: 93.911357
Z164: 97 | BO164: 94.9080373 | BP164: 94.9068316 | BQ164: 94.9058379 | BR164: 94.907662 | BS164: 94.910411
Z165: 96 | BO165: 95.908272 | BP165: 95.908097 | BQ165: 95.9046755 | BR165: 95.907868 | BS165: 95.907596 | BT165: 95.914511
Z166: 97 | BP166: 96.908093 | BQ166: 96.9060179 | BR166: 96.906362 | BS166: 96.9076
Z167: 98 | BP167: 97.910327 | BQ167: 97.905405 | BR167: 97.907211 | BS167: 97.905287 | BT167: 97.910716 | BU167: 97.91276
Z168: 99 | BQ168: 98.9077087 | BR168: 98.9062522 | BS168: 98.9059371 | BT168: 98.908195 | BU168: 98.91185
Z169: 100 | BQ169: 99.907473 | BR169: 99.9076558 | BS169: 99.9042175 | BT169: 99.908114 | BU169: 99.908502
Z170: 101 | BR170: 100.907325 | BS170: 100.9055808 | BT170: 100.906162 | BU170: 100.90829
Z171: 102 | BR171: 101.90918 | BS171: 101.9043475 | BT171: 101.906842 | BU171: 101.905609 | BV171: 101.91162
Z172: 103 | BS172: 102.9063218 | BT172: 102.905503 | BU172: 102.906089 | BV172: 102.90897
Z173: 104 | BS173: 103.905422 | BT173: 103.906653 | BU173: 103.904026 | BV173: 103.908588 | BW173: 103.90998
Z174: 105 | BT174: 104.905684 | BU174: 104.905075 | BV174: 104.906522 | BW174: 104.909462
Z175: 106 | BT175: 105.907276 | BU175: 105.903475 | BV175: 105.906678 | BW175: 105.906461 | BX175: 105.913488
Z176: 107 | BT176: 106.90675 | BU176: 106.90513 | BV176: 106.905095 | BW176: 106.90616 | BX176: 106.91036
Z177: 108 | BU177: 107.903894 | BV177: 107.905956 | BW177: 107.904186 | BX177: 107.90971 | BY177: 107.91208
Z178: 109 | BU178: 108.905952 | BV178: 108.904754 | BW178: 108.904949 | BX178: 108.907113 | BY178: 108.9113
Z179: 110 | BU179: 109.905169 | BV179: 109.906113 | BW179: 109.903007 | BX179: 109.907237 | BY179: 109.907854
Z180: 111 | BV180: 110.905286 | BW180: 110.904182 | BX180: 110.905094 | BY180: 110.90774
Z181: 112 | BV181: 111.907011 | BW181: 111.9027614 | BX181: 111.905529 | BY181: 111.904823 | BZ181: 111.91255 | CA181: 111.91675
Z182: 113 | BV182: 112.906559 | BW182: 112.9044013 | BX182: 112.904056 | BY182: 112.905172 | BZ182: 112.909348 | CA182: 112.91568
Z183: 114 | BW183: 113.9033607 | BX183: 113.904911 | BY183: 113.902781 | BZ183: 113.90889 | CA183: 113.91177
Z184: 115 | BW184: 114.905429 | BX184: 114.903875 | BY184: 114.9033441 | BZ184: 114.906597 | CA184: 114.91152
Z185: 116 | BW185: 115.904758 | BX185: 115.905257 | BY185: 115.9017435 | BZ185: 115.90668 | CA185: 115.90836
Z186: 117 | BX186: 116.904515 | BY186: 116.9029536 | BZ186: 116.904827 | CA186: 116.908573
Z187: 118 | BX187: 117.90612 | BY187: 117.9016066 | BZ187: 117.905564 | CA187: 117.905882
Z188: 119 | BX188: 118.905819 | BY188: 118.9033102 | BZ188: 118.903937 | CA188: 118.9064
Z189: 120 | BX189: 119.908 | BY189: 119.902199 | BZ189: 119.905077 | CA189: 119.904021 | CB189: 119.90982
Z190: 121 | BX190: 120.907845 | BY190: 120.9042387 | BZ190: 120.9038237 | CA190: 120.904983 | CB190: 120.90753
Z191: 122 | BY191: 121.90344 | BZ191: 121.9051818 | CA191: 121.903055 | CB191: 121.9075 | CC191: 121.90857
Z192: 123 | BY192: 122.905721 | BZ192: 122.904222 | CA192: 122.904278 | CB192: 122.90557 | CC192: 122.90844
Z193: 124 | BY193: 123.905271 | BZ193: 123.905944 | CA193: 123.902825 | CB193: 123.906215 | CC193: 123.90612 | CD193: 123.91248
Z194: 125 | BZ194: 124.905259 | CA194: 124.904435 | CB194: 124.904626 | CC194: 124.90649 | CD194: 124.90978
Z195: 126 | BZ195: 125.907245 | CA195: 125.90331 | CB195: 125.905624 | CC195: 125.905624 | CD195: 125.90947 | CE195: 125.91137
Z196: 127 | BZ196: 126.90692 | CA196: 126.905222 | CB196: 126.904477 | CC196: 126.90519 | CD196: 126.907455 | CE196: 126.91116
Z197: 128 | CA197: 127.904464 | CB197: 127.905815 | CC197: 127.9035308 | CD197: 127.907746 | CE197: 127.908232
Z198: 129 | CA198: 128.906595 | CB198: 128.904986 | CC198: 128.9047801 | CD198: 128.905998 | CE198: 128.908624
Z199: 130 | CA199: 129.906229 | CB199: 129.906713 | CC199: 129.9035095 | CD199: 129.90675 | CE199: 129.906277 | CF199: 129.9124
Z200: 131 | CB200: 130.906119 | CC200: 130.905076 | CD200: 130.905457 | CE200: 130.906897 | CF200: 130.91007 | CG200: 130.91469
Z201: 132 | CB201: 131.907992 | CC201: 131.904148 | CD201: 131.906415 | CE201: 131.905042 | CF201: 131.9101 | CG201: 131.9116
Z202: 133 | CB202: 132.907781 | CC202: 132.905892 | CD202: 132.905433 | CE202: 132.905992 | CF202: 132.90814 | CG202: 132.91179
Z203: 134 | CC203: 133.905395 | CD203: 133.9067 | CE203: 133.90449 | CF203: 133.908462 | CG203: 133.909
... 107 more rows

Sheet Sheet1
